Cogmind - Beta 17.1 @@@ ROGUE MODE // 2026.09.01 @ 12:25:58 Player: cd4337 Result: Destroyed by 21-3MN(R) with Subdweller Laser Performance ------------- Evolutions (0) 0 Regions Visited (2) 400 Robots Destroyed (10) 50 Value Destroyed (371) 371 Prototype IDs (0) 0 Alien Tech Used (0) 0 Bonus (0) 0 TOTAL SCORE: 821 Bonus ------- None Cogmind --------- Core Integrity 0/250 Matter 292/300 Energy 62/100 System Corruption 0% Temperature Cool (6) Movement Rolling (110) Location -10/Subcaves Parts ------- > --- POWER (1) -------- (None) > --- PROPULSION (2) --- Subdweller Monowheel > --- UTILITY (2) ------ Small Storage Unit Signal Interpreter > --- WEAPON (2) ------- Riot Gun Barrage Gun > --- INVENTORY (8) ---- Ion Engine Light Ion Engine Subdweller Power Source Subdweller Monowheel Peak State ------------ > --- POWER ------------ Subdweller Power Source > --- PROPULSION ------- Subdweller Monowheel Subdweller Monowheel > --- UTILITY ---------- Small Storage Unit Signal Interpreter > --- WEAPON ----------- Small Laser Subdweller Machine Gun > --- INVENTORY -------- Ion Engine Light Ion Engine Subdweller Monowheel Riot Gun Barrage Gun [Rating: 12] Favorites ----------- Power Ion Engine Engine Ion Engine Propulsion Subdweller Monowheel Wheel Subdweller Monowheel Hover Unit Backup Propulsion I Utility Small Storage Unit Storage Small Storage Unit Processor Signal Interpreter Weapon Small Laser Energy Gun Small Laser Ballistic Gun Light Assault Rifle Build | -11 -10 -10 ------- Run | Yrd Mat Sub Slots Evolved . | . . . Power . | . . . Propulsion . | . . . Utility . | . . . Weapon . | . . . Parts Attached 15 | 7 2 6 Power 3 | 1 1 1 Engine 3 | 1 1 1 Core . | . . . Reactor . | . . . Propulsion 4 | 2 . 2 Treads . | . . . Leg . | . . . Wheel 4 | 2 . 2 Hover . | . . . Flight . | . . . Utility 2 | 1 1 . Device . | . . . Storage 1 | 1 . . Processor 1 | . 1 . Hackware . | . . . Protection . | . . . Artifact . | . . . Weapon 6 | 3 . 3 Energy Gun 3 | 2 . 1 Energy Cannon . | . . . Ballistic Gun 3 | 1 . 2 Ballistic Cannon . | . . . Launcher . | . . . Special Weapon . | . . . Impact Weapon . | . . . Slashing Weapon . | . . . Piercing Weapon . | . . . Special Melee Weapon . | . . . Unidentified Prototypes . | . . . Parts Lost 10 | . 2 8 Power 2 | . . 2 Propulsion 4 | . 1 3 Utility . | . . . Weapon 4 | . 1 3 Highest Loss Streak 3 | . 2 3 To Critical Strikes . | . . . Average Backups 3 | 2 1 3 Power 1 | . 1 2 Propulsion . | . . . Utility . | . . . Weapon . | 1 . . Tool/Special . | . . . Unused Backups 3 | . . 3 Power 2 | . . 2 Propulsion 1 | . . 1 Utility . | . . . Weapon . | . . . Tool/Special . | . . . Average Slot Usage (%) 92 | . 90 93 Engine 12 | . 13 12 Wheel 18 | . 18 18 Hover 3 | . 2 4 Storage 14 | . 14 14 Processor 13 | . 13 14 Energy Gun 13 | . 13 14 Ballistic Gun 13 | . 14 13 Peak Build Rating 12 | 6 7 12 Average Rating 8 | 4 6 9 On Entrance 4 | . 6 7 Avg Prop Armor Cover (%) 6 | . 7 6 Naked Turns . | . . . Heaviest Build 16 | 13 13 16 Greatest Support 40 | 26 26 40 Greatest Overweight (x) 3 | 1 1 3 Average Overweight (x) . | . . . Largest Inventory Capacity 8 | 8 8 8 Average Capacity 7 | 7 8 8 Most Carried 6 | 5 3 6 Average Carried 3 | 2 1 3 Final Capacity 8 | 8 8 8 Final Carried 4 | 2 2 4 Class Distribution -------------------- 100% | Mutant Dominant Class ---------------- Mutant | -10/Materials Mutant | -10/Subcaves Resources | -11 -10 -10 ----------- Run | Yrd Mat Sub Matter Collected 422 | 253 63 106 Remotely . | . . . Salvage Created 341 | . 141 200 Parts 22 | . 7 15 Haulers Intercepted . | . . . Recyclers Shooed . | . . . Parts Field Recycled . | . . . Retrieved Matter . | . . . Parts Self-Destructed 6 | . . 6 Prevented . | . . . Parts Restored . | . . . Kills | -11 -10 -10 ------- Run | Yrd Mat Sub Combat Hostiles Destroyed 9 | . 3 6 Guns 9 | . 3 6 Classes Destroyed 3 | . 2 1 Watcher 1 | . 1 . Grunt 3 | . 3 . Subdweller 6 | . . 6 Best Kill Streak 2 | . 2 2 Combat Bots Only 2 | . 2 2 Max Kills in Single Turn 1 | . 1 1 Gunslinging . | . . . Exploded . | . . . Melee . | . . . Uniques/NPCs Destroyed . | . . . Combat | -11 -10 -10 -------- Run | Yrd Mat Sub Hostile Shots Fired 66 | . 32 34 Missed 13 | . 5 8 Hits 53 | . 27 26 Projectile 53 | . 27 26 Damage Taken 945 | . 358 587 Core 263 | . 96 167 Absorbed by Shields . | . . . Regen/Repaired (Parts) 3 | . 3 . Core Remaining (%) 100 | 100 . . Volleys Fired 70 | . 28 42 Largest 2 | . 2 2 Hottest 78 | . 70 78 Shots Fired 132 | . 53 79 Gun 132 | . 53 79 Cannon . | . . . Launcher . | . . . Special . | . . . Kinetic 65 | . 28 37 Thermal 61 | . 25 36 Explosive . | . . . Electromagnetic 6 | . . 6 Robot Hit Streak 36 | . 4 36 Robot Miss Streak 3 | . 3 1 Penetration Max . | . . . Secondary Targets . | . . . Shots Hit Robots 76 | . 31 45 Core Hits 24 | . 12 12 Critical Kills 1 | . 1 . Critical Parts Destroyed . | . . . Critical Strikes 2 | . 2 . Burn 1 | . 1 . Destroy 1 | . 1 . Melee Attacks . | . . . Impact . | . . . Slashing . | . . . Piercing . | . . . Sneak Attacks . | . . . Combat Hostiles . | . . . Follow-up Attacks . | . . . Damage Inflicted 828 | . 344 484 Guns 825 | . 341 484 Cannons . | . . . Explosions . | . . . Melee . | . . . Ramming 3 | . 3 . Kinetic 407 | . 161 246 Thermal 376 | . 180 196 Explosive . | . . . Electromagnetic 42 | . . 42 Impact . | . . . Slashing . | . . . Piercing . | . . . Highest Corruption . | . . . Average Corruption . | . . . Corruption Purged . | . . . Corruption Blocked . | . . . Overload Shots . | . . . Overflow Damage . | . . . Projectiles . | . . . Explosions . | . . . Melee . | . . . Knockbacks . | . . . Impact . | . . . Kinetic . | . . . Secondary . | . . . Self-Inflicted Damage 1 | . 1 . Shots . | . . . Rammed 1 | . 1 . Targets Rammed 1 | . 1 . Kicked . | . . . Crushed . | . . . Highest Temperature 268 | . 268 5 Average Temperature 96 | . 98 4 Received Heat Transfer 327 | . 195 132 Effects 1 | . 1 . Energy Bleed 1 | . 1 . Siege Activations . | . . . Martial Activations . | . . . Shielding Activations . | . . . Robots Disrupted . | . . . Combat Hostiles . | . . . Robots Corrupted . | . . . Combat Hostiles . | . . . Parts Fried . | . . . Impact Corruptions . | . . . Robots Melted . | . . . Combat Hostiles . | . . . Parts Melted 1 | . . 1 Heat Transferred 1031 | . 581 450 Parts Sabotaged . | . . . Parts Stolen . | . . . Parts Stripped . | . . . Power Chain Reactions . | . . . Alert | -11 -10 -10 ------- Run | Yrd Mat Sub Maximum Alert Level . | . . . Low Security (%) 100 | 100 100 . Level 1 . | . . . Level 2 . | . . . Level 3 . | . . . Level 4 . | . . . Level 5 . | . . . High Security . | . . . Max Security . | . . . Peak Influence 70 | . 70 . Initial . | . . . Average 19 | . 22 . Influence Increases 165 | . 165 . Destroy 0b10 Robot/C 60 | . 60 . Destroy 0b10 Robot/NC 5 | . 5 . Destroy Leader 22 | . 22 . Successful Hack 18 | . 18 . Lose Combat Pursuer 60 | . 60 . Influence Decreases 165 | . 165 . Time Decay 136 | . 136 . Purge Threat 29 | . 29 . Squads Dispatched 1 | . 1 . Investigation . | . . . Extermination . | . . . Reinforcement 1 | . 1 . Assault . | . . . Garrison . | . . . Intercept . | . . . Searches Triggered . | . . . Construction Impeded . | . . . Haulers Reinforced . | . . . Active Scanning Responses . | . . . Cargo Convoy Interrupts . | . . . Stealth | -11 -10 -10 --------- Run | Yrd Mat Sub Distress Signals 1 | . 1 . Communications Jammed . | . . . Distress Signals . | . . . Times Spotted 20 | . 13 7 Peak Tracking Total 6 | . 6 2 Tactical Retreats 1 | . 1 . Traps | -11 -10 -10 ------- Run | Yrd Mat Sub Traps Triggered . | . . . Indirectly . | . . . Trap Hack Attempts . | . . . Triggered . | . . . Disarmed . | . . . Reprogrammed . | . . . Reused . | . . . Traps Extracted . | . . . Installed . | . . . Triggered . | . . . Machines | -11 -10 -10 ---------- Run | Yrd Mat Sub Machines Disabled . | . . . Max in Single Turn . | . . . Machines Repaired . | . . . Machines Dismantled . | . . . Machines Sabotaged . | . . . Overloaded Fab Kills . | . . . Hacking | -11 -10 -10 --------- Run | Yrd Mat Sub Machines Accessed 4 | . 3 1 Terminals 2 | . 2 . Fabricators . | . . . Repair Stations 1 | . 1 . Recycling Units . | . . . Scanalyzers . | . . . Garrison Access . | . . . Total Hacks 12 | . 7 5 Successful 10 | . 5 5 Failed 2 | . 2 . Catastrophic . | . . . Database Lockouts . | . . . Manual 2 | . 2 . Terminals 4 | . 4 . Fabricators . | . . . Repair Stations 3 | . 3 . Recycling Units . | . . . Scanalyzers . | . . . Garrison Access . | . . . Terminal Hacks 7 | . 2 5 Record 5 | . . 5 Level Access Points 1 | . 1 . Unreport Threat 1 | . 1 . Fabricator Hacks . | . . . Repair Station Hacks 3 | . 3 . Scan Component 1 | . 1 . Repair 1 | . 1 . Refit 1 | . 1 . Recycling Unit Hacks . | . . . Scanalyzer . | . . . Garrison Access Hacks . | . . . Unauthorized Hacks . | . . . Terminals . | . . . Fabricators . | . . . Repair Stations . | . . . Recycling Units . | . . . Scanalyzers . | . . . Garrison Access . | . . . Data Cores Recovered . | . . . Used . | . . . Hacking Detections 2 | . 2 . Full Trace Events . | . . . Feedback Events . | . . . Feedback Blocked . | . . . Robot Schematics Acquired . | . . . Robots Built . | . . . Authchips . | . . . Time . | . . . Total Robot Build Rating . | . . . Part Schematics Acquired . | . . . Parts Built . | . . . Authchips . | . . . Time . | . . . Total Part Build Rating . | . . . Part Studies Acquired . | . . . Parts Repaired 1 | . 1 . Time 26 | . 26 . Parts Recycled . | . . . Recycled Matter . | . . . Retrieved Matter . | . . . Retrieved Components . | . . . Parts Scanalyzed . | . . . Part Schematics Acquired . | . . . Parts Damaged . | . . . Bothacking | -11 -10 -10 ------------ Run | Yrd Mat Sub Used RIF Installer . | . . . Robots Hacked . | . . . Non-combat . | . . . Combat . | . . . Robot Hacks Applied . | . . . Relay Couplers Released . | . . . Fabnet Peak Effective % . | . . . Robots Rewired . | . . . Allies Hacked . | . . . Hacks Repelled . | . . . Allies | -11 -10 -10 -------- Run | Yrd Mat Sub Total Allies . | . . . Largest Group . | . . . Highest-Rated Group . | . . . Highest-Rated Ally . | . . . Total Orders . | . . . Ally Attacks . | . . . Total Damage . | . . . Kills . | . . . Allies Corrupted . | . . . Allies Melted . | . . . Intel | -11 -10 -10 ------- Run | Yrd Mat Sub Active Infowar (turns) . | . . . Robot Analysis Total . | . . . Derelict Logs Recovered 2 | . . 2 Drone Launches . | . . . Drone Recoveries . | . . . Exploration | -11 -10 -10 ------------- Run | Yrd Mat Sub Turns Passed 1631 | 66 434 1131 Spaces Moved 954 | 48 257 649 Core 54 | 20 . 34 Treads . | . . . Legs . | . . . Wheels 681 | 28 228 425 Hover 219 | . 29 190 Flight . | . . . Fastest Speed 50 | 50 90 110 Average Speed 119 | 74 100 130 Slowest Speed 200 | 100 165 200 Overloaded Moves . | . . . Propulsion Burnouts . | . . . Robots Hopped . | . . . Potential Cave-ins . | . . . Cave-ins Triggered . | . . . Exploration Rate (%) 25 | 3 41 33 Regions Visited 2 Branch Regions 1 Pre-discovered Areas 2 | . . 2 Known Exits Taken 1 | . 1 . Unknown Exits Taken 1 | 1 . . Scrap Searched 4 | . . 4 Spaces Dug . | . . . Terrain Destroyed . | . . . Melee . | . . . Projectile . | . . . AOE . | . . . Terrain Rammed . | . . . Walls Destroyed . | . . . Machines Disabled . | . . . Actions | -11 -10 -10 --------- Run | Yrd Mat Sub Total 1317 | 76 385 856 Wait 261 | 17 93 151 Move 952 | 47 256 649 Hop . | . . . Pick Up 16 | 5 3 8 Fast Attach 3 | 3 . . Attach 12 | 3 3 6 Detach . | . . . Swap 2 | 1 1 . Drop . | . . . Fire 70 | . 28 42 Melee . | . . . Ram 1 | . 1 . Kick . | . . . Crush . | . . . Escape Stasis . | . . . Rewire . | . . . Trap . | . . . Miscellaneous . | . . . Route ------- -11/Scrapyard -10/Materials (discovered 5 exits: *Mat x3 / [*Min] / *Sub) -10/Subcaves History --------- Turn | Location | Event 9 | -11/Scrapyard | Discovered new exit (range 16) 67 | -11/Scrapyard | Entered Materials 111 | -10/Materials | Identified exit to Materials 258 | -10/Materials | Discovered new exit (range 6) 300 | -10/Materials | Build established: Mutant 405 | -10/Materials | Discovered new exit (range 10) 453 | -10/Materials | Repaired Ion Engine 500 | -10/Materials | Identified exit to Subcaves 501 | -10/Materials | Entered Subcaves 502 | -10/Subcaves | Approached by a straggling Scientist 825 | -10/Subcaves | Core integrity fell below 50% 878 | -10/Subcaves | Lost 3 parts (1p1n1w) 1409 | -10/Subcaves | Core integrity fell below 20% 1437 | -10/Subcaves | Lost 3 parts (1n2w) 1443 | -10/Subcaves | Visited Clippyterm 1446 | -10/Subcaves | Learned location of Extension (-6) 1446 | -10/Subcaves | Learned Research machine intel 1632 | -10/Subcaves | Destroyed by 21-3MN(R) with Subdweller Laser Last Messages --------------- >>Record! "Procgen" It looks like you're analyzing machine distribution algorithms, I have access to useful relevant data. Data stored: Research machine intel. >>Record! "LU-1G1" It looks like you're researching the legendary digger of dangerously deep tunnels, unfortunately it seems not even members of the Boring Crew know what became of that one. >>Record! "01-MTF" It looks like you're after the notorious thief from 0b1. I don't know where they are, but my data indicates that someone they're looking for is frequently seen in Scraptown. 01553_ 4L-0GN(R): "OHNO!" 01573_ 4L-0GN(R) destroyed. 01577_ Acquired 9 matter. 01618_ Subatomizers dissect the Multitool. 01626_ Sub. Power Source destroyed. Map ----- +----------------------------------------------------+ | ?????????????????????????????# #?# #####?## | | ?????????????????????????????# #?# ####### | | ?????????????????????????????# ### ##??? | | ??????????????????????????????# ## #### | | ???????????????????????????????# | | ???????????????????????????????# #### | | ????????????????????????????#### ##?# | | ???????????????????????????## ### ## | | ???????????????????????????# #### | | ???????????????????????????# #??# | | ???????????????? ???????## ### | | ????????????????? ????## ## ## | | ?????????????????? ##??# ## #? | | ??????????????????? ??# ## #### ? | | ???????????????????? ?# ######## ? | | ????????????????????? ?# #?? ? ? | | ?????????????????????# ?# ###? ? | | ?????????????????????# ?## ### # ## ? | | ?????????????????????# ## # ## # ### #? | | ?????????????????????# = ##?### ?? | | ?????????????????????## % # ##????????###?? | | ??????????????????????## &###?####?????????????? | | ???????????????????????# ##???????????????????? | | ???????????????????????## ## ###?????????????? | | ???????????????????????# #?????????????? | | ???????????????????????##@ " ##?????????????? | | ?????????????????????? " #??????????????? | | ????????????????????# "" #??????????????? | | ???????????????????# "" " #?????????????? | | ???????????????????# R""" " ##?????????????? | | ?????????????????? |%"" " #??????????????? | | ???????????????? ="" ?????????????? | | ??????????????? "" ????????????? | | ???????????????## ## "" ????????????? | | ????????????????##?# ??" ### ? ????????????? | | ???????????????????####??" #??# ???????????????? | | ?????????????????????????" ""#???????????????????? | | ?????????????????????????""" ???????????????????? | | ?????????????????????????? ??????????????????????? | | ?????????????????????????????????????????????????? | | ?????????????????????????????????????????????????? | | ?????????????????????????????????????????????????? | | ?????????????????????????????????????????????????? | | ?????????????????????????????????????????????????? | | ?????????????????????????????????????????????????? | | ?????????????????????????????????????????????????? | | ?????????????????????????????????????????????????? | | ?????????????????????????????????????????????????? | | ?????????????????????????????????????????????????? | | ?????????????????????????????????????????????????? | +----------------------------------------------------+ Best States ------------- Heat Dissipation 25 Energy Generation 15 Energy Capacity 250 Matter Stores 300 Matter Capacity 300 Sight Range 16 Terrain Scan Density 10 Evasion (%) 50 Item Schematics ----------------- None Robot Schematics ------------------ None Fabricated ------------ Nothing Repaired ---------- Ion Engine | 95% | -10/Materials Studied --------- None Alien Tech Used ----------------- None Achievements -------------- None Challenges ------------ None Game ------ Seed ComponentRingFemtoactuators Manual? 0 Play Time 00:13:55 Cumulative 18.1 hours Start 2026.09.01 @ 12:10:14 End 2026.09.01 @ 12:25:58 Sessions 1 Manual Loads 0 Difficulty Rogue Special Mode None Game No. 41 Rogue 41 Adventurer 0 Explorer 0 Win Type - Total 0 Types 0/0/0/0/0/0/0/0/0/0 Lore% 11 Gallery% 14 Achievement% 13 Wizard Run 0 Options --------- Layout 1 ASCII 0 Keyboard 0 Movement Mouse Keybinds 0 Fullscreen 1 Font 32/SmallcapsGlow Map View 50x35 Zoom Use 0% Tactical HUD 1 Map Filters NONE Filters NONE Steam 1 RUN: 1ece703d-4332-4b41-8b02-0badd02c559f